Cogmind - Beta 10.2 @@@ ROGUE MODE // 2021.01.06 @ 20:07:22 Player: CrossedViper Result: Destroyed by Executioner with Helical Railgun Performance ------------- Evolutions (9) 4500 Regions Visited (31) 6200 Robots Destroyed (528) 2640 Value Destroyed (29159) 29159 Prototype IDs (101) 2020 Alien Tech Used (3) 600 Bonus (30804) 30804 TOTAL SCORE: 75923 Bonus ------- Triggered High Security 500 High Alert Combat Kills 12551 Follower Combat Kills 2255 Entered Garrisons 200 Network Hubs Disabled 400 Aligned with FarCom 300 Met Imprinter 300 Met Zhirov 300 Met Warlord at Base 500 MAIN.C Attacked Warlord 500 Warlord Defense Kill 1638 Built Enhanced Grunts 300 Met R17 at Cetus 500 Met Warlord at Research 2000 Scanned by Researcher 500 Acquired SGEMP 2000 Delivered SGEMP 2000 Destroyed MAIN.C Guards 500 Met MAIN.C 5000 Friendly Fire -1440 Cogmind --------- Core Integrity 0/1600 Matter 76/300 Energy 85/100 System Corruption 46% Temperature Cool (9) Movement Core (700) Ox13 Location -1/Command Parts ------- > --- POWER (3) -------- (None) > --- PROPULSION (2) --- (None) > --- UTILITY (18) ----- Experimental Coolant Injector High-capacity Storage Unit Spectral Analyzer Improved Armor Integrity Analyzer > --- WEAPON (2) ------- Core Stripper > --- INVENTORY (12) --- Experimental Matter Compressor (0) Antimissile System Peak State ------------ > --- POWER ------------ Zero-point Reactor Zero-point Reactor Zero-point Reactor > --- PROPULSION ------- Experimental Biometal Heavy Treads > --- UTILITY ---------- Cooling System 2N-1CE's Frost Array Experimental Coolant Injector High-capacity Storage Unit Spectral Analyzer Experimental Targeting Computer Experimental Target Analyzer Improved Armor Integrity Analyzer Quantum Capacitor SHELL Armor SHELL Armor AEGIS Remote Shield System Purifier > --- WEAPON ----------- Core Stripper > --- INVENTORY -------- Experimental Matter Compressor Heavy Regenerative Plating Thermal Barrier Antimissile System Improved Potential Cannon Ragnarok Missile Launcher Molecular Deconstructor [Rating: 231] Favorites ----------- Power Reinforced Fission Core Engine Heavy Ion Engine Power Core Reinforced Fission Core Reactor Reinforced Antimatter Reactor Propulsion Light Treads Treads Light Treads Leg Biometal Leg Hover Unit Combat Antigrav System Utility High-capacity Storage Unit Device Improved Coolant Injector Storage High-capacity Storage Unit Processor Improved Armor Integrity Analyzer Hackware Advanced Hacking Suite Protection Hardened Heavy Armor Plating Weapon Flak Gun Energy Gun EM Pulse Gun Energy Cannon Long-range Proton Cannon Ballistic Gun Flak Gun Ballistic Cannon Compact Linear Accelerator Launcher Grenade Launcher Special Weapon Molecular Deconstructor Impact Weapon Core Stripper Slashing Weapon Longsword +1 Build | -11 -10 -10 -10 -9 -8 -8 -7 -7 -7 -6 -6 -6 -6 -6 -6 -5 -5 -5 -5 -4 -4 -4 -4 -4 -3 -3 -3 -2 -2 -1 -1 ------- Run | Scr Mat Min Exi Min Mat Gar Fac Low Zio Pro Fac Ext Cet Arc Hub Fac Upp Upp Zhi Pro Fac Upp Upp War Pro Res Tes Res Qua Acc Com Slots Evolved 18 | . . . . . 4 . 2 . . . 2 . . . . 2 . . . . 2 . . . . 2 . 2 . 2 . Power 2 | . . . . . . . . . . . . . . . . 1 . . . . . . . . . 1 . . . . . Propulsion . | . . . . . . . . . . . . . . . . . . . . . . . . . . . . . . . . Utility 16 | . . . . . 4 . 2 . . . 2 . . . . 1 . . . . 2 . . . . 1 . 2 . 2 . Weapon . | . . . . . . . . . . . . . . . . . . . . . . . . . . . . . . . . Parts Attached 437 | . 7 7 15 1 29 12 16 2 5 6 10 20 4 2 3 24 17 9 4 39 . 7 11 17 6 2 64 25 14 8 51 Power 37 | . . 1 1 . 1 1 . . 1 . . . . . . 3 2 1 1 2 . . . 1 . . 9 2 4 1 6 Engine 6 | . . 1 . . 1 1 . . . . . . . . . 2 . . . . . . . . . . . . 1 . . Core 11 | . . . 1 . . . . . 1 . . . . . . 1 2 1 . 2 . . . . . . 3 . . . . Reactor 20 | . . . . . . . . . . . . . . . . . . . 1 . . . . 1 . . 6 2 3 1 6 Propulsion 37 | . 2 2 4 . 5 3 2 . . . . 1 1 . . . 1 . . 4 . . . 1 . . 4 2 1 . 4 Treads 30 | . 2 2 1 . 5 3 2 . . . . 1 1 . . . 1 . . 4 . . . 1 . . . 2 1 . 4 Leg 6 | . . . 2 . . . . . . . . . . . . . . . . . . . . . . . 4 . . . . Wheel . | . . . . . . . . . . . . . . . . . . . . . . . . . . . . . . . . Hover 1 | . . . 1 . . . . . . . . . . . . . . . . . . . . . . . . . . . . Flight . | . . . . . . . . . . . . . . . . . . . . . . . . . . . . . . . . Utility 173 | . 2 2 6 . 8 5 11 1 3 3 5 14 2 . 2 14 7 4 3 14 . 4 4 6 1 1 29 7 2 2 11 Device 75 | . . . 4 . 2 3 3 1 2 1 2 6 . . 1 3 3 1 1 7 . 2 4 2 . . 16 2 . . 9 Storage 18 | . 2 1 2 . 2 . 2 . . . . . . . . 2 . . . 1 . 1 . . 1 . 3 . . . 1 Processor 12 | . . 1 . . 1 . . . . 1 . 2 . . . 2 . . . . . . . 1 . . 1 2 1 . . Hackware 2 | . . . . . . . . . . . . . . . . 1 . . . 1 . . . . . . . . . . . Protection 66 | . . . . . 3 2 6 . 1 1 3 6 2 . 1 6 4 3 2 5 . 1 . 3 . 1 9 3 1 2 1 Artifact . | . . . . . . . . . . . . . . . . . . . . . . . . . . . . . . . . Weapon 190 | . 3 2 4 1 15 3 3 1 1 3 5 5 1 2 1 7 7 4 . 19 . 3 7 9 5 1 22 14 7 5 30 Energy Gun 33 | . 2 1 1 1 2 . . . . . . . . 1 . 3 . . . 8 . . 1 3 . . 6 1 2 1 . Energy Cannon 48 | . . . . . . 2 . . . . . 1 . . . . 1 1 . 3 . 2 3 4 3 . 6 3 2 1 16 Ballistic Gun 49 | . . . 1 . 8 1 3 1 1 2 2 3 1 1 1 2 4 1 . 6 . . 1 . . . 4 4 1 . 1 Ballistic Cannon 12 | . . 1 . . . . . . . . . . . . . . . . . . . . . . 1 . 4 3 . . 3 Launcher 33 | . 1 . . . 2 . . . . 1 2 1 . . . 2 2 2 . 2 . 1 2 . 1 1 2 3 2 2 4 Special Weapon 6 | . . . . . . . . . . . . . . . . . . . . . . . . 2 . . . . . 1 3 Impact Weapon 3 | . . . . . . . . . . . . . . . . . . . . . . . . . . . . . . . 3 Slashing Weapon 6 | . . . 2 . 3 . . . . . 1 . . . . . . . . . . . . . . . . . . . . Piercing Weapon . | . . . . . . . . . . . . . . . . . . . . . . . . . . . . . . . . Special Melee Weapon . | . . . . . . . . . . . . . . . . . . . . . . . . . . . . . . . . Unidentified Prototypes 53 | . . . 4 . 3 . . . 2 1 1 . 2 1 . 1 1 . 3 . . . . 5 1 . 13 6 . 1 8 Parts Lost 85 | . 2 . 1 . 6 1 . . . . 1 3 . . 3 1 4 3 . 23 . . . 2 . . 6 3 3 . 23 Power 13 | . . . . . . . . . . . . . . . . . 1 1 . 2 . . . . . . 3 1 1 . 4 Propulsion 5 | . . . . . . . . . . . . . . . . . . . . 3 . . . . . . . . . . 2 Utility 36 | . . . 1 . 2 . . . . . 1 2 . . 2 1 2 1 . 7 . . . 2 . . 1 1 1 . 12 Weapon 31 | . 2 . . . 4 1 . . . . . 1 . . 1 . 1 1 . 11 . . . . . . 2 1 1 . 5 Highest Loss Streak 17 | . 1 . 1 . 2 1 . . . . 1 2 . . 3 1 2 2 . 11 . . . 2 . . 4 2 1 . 17 Average Slot Usage (%) 85 | . 98 100 94 100 93 99 88 84 83 84 83 85 85 86 85 93 88 89 93 80 84 92 84 82 78 75 76 76 77 71 68 Engine 3 | . 14 14 11 . 7 9 7 7 4 . . . . . . 5 . . . . . . . . . . . . . . . Core 3 | . . . 2 14 1 . . . 2 7 6 6 6 6 6 5 6 10 8 . 10 10 10 8 . . 2 6 . . . Reactor 2 | . . . . . . . . . . . . . . . . . . . 2 2 . . . . 5 4 6 5 12 12 11 Treads 8 | . 27 28 22 . 15 18 11 7 7 7 6 6 6 6 6 5 5 5 5 5 5 5 5 5 5 4 1 2 4 4 3 Leg 1 | . . . 4 28 2 . . . . . . . . . . . . . . . . . . . . . 5 2 . . . Device 8 | . . . 3 14 10 18 13 7 7 7 10 7 6 6 11 6 9 5 5 8 15 23 10 10 10 9 6 7 9 8 12 Storage 19 | . 26 27 19 14 25 27 24 30 30 30 26 26 26 26 26 23 23 23 23 21 10 10 15 15 15 14 14 9 8 8 6 Processor 9 | . . . . . 1 . . . . 5 6 9 13 13 13 17 17 17 17 17 15 15 15 15 15 14 13 15 20 20 17 Hackware 2 | . . . . . . . . . . . . . . . . 1 5 5 5 6 10 10 10 9 5 4 3 . . . . Protection 8 | . . . . . 11 8 14 15 14 8 13 15 13 13 7 13 5 6 10 4 5 5 5 5 10 13 10 16 11 12 11 Energy Gun 2 | . 21 13 2 27 1 . . . . . . . . 4 5 3 . . . 1 5 . 1 1 . . 1 1 . 3 . Energy Cannon 2 | . . . . . . 8 1 . . . . . 3 . . . . 2 . 2 5 9 7 5 8 4 2 1 3 1 4 Ballistic Gun 6 | . . . 5 . 14 8 13 15 15 14 11 11 1 6 6 5 10 5 5 6 . . 1 2 . . 1 3 4 2 . Launcher 1 | . 6 14 7 . . . . . . . . . 6 . . . . 1 5 . . . . . 1 1 . . . . . Naked Turns . | . . . . . . . . . . . . . . . . . . . . . . . . . . . . . . . . Heaviest Build 273 | 10 40 41 62 62 85 92 141 141 153 153 163 162 158 157 156 166 166 176 173 173 119 205 205 219 221 223 273 259 211 228 243 Greatest Support 85 | 20 40 40 60 60 60 42 75 75 75 75 75 75 75 75 75 75 80 80 80 80 70 70 70 80 80 80 80 75 80 80 85 Greatest Overweight (x) 20 | . . 1 1 1 2 2 2 1 2 2 2 2 2 2 2 2 2 2 2 2 1 2 2 2 2 2 9 5 3 2 20 Average Overweight (x) 1 | . . . . . 1 2 1 1 1 1 1 2 2 2 1 1 1 2 2 1 1 1 2 2 2 2 3 2 2 2 2 Largest Inventory Capacity 40 | . 16 16 18 12 24 24 32 32 32 32 32 32 32 32 32 34 34 34 34 34 20 40 40 40 40 40 40 40 20 20 20 Average Capacity 28 | . 14 15 14 12 22 24 25 32 32 32 32 32 32 32 32 32 34 34 34 32 20 21 40 40 39 40 39 25 20 20 16 Most Carried 40 | . 14 16 18 12 24 24 32 32 32 32 32 32 32 32 32 32 32 31 30 33 20 37 40 40 40 39 40 39 20 20 20 Average Carried 27 | . 9 14 13 12 20 23 25 32 31 31 31 31 31 32 31 31 29 28 28 26 20 20 37 39 37 38 39 25 19 19 15 Final Capacity 40 | 6 16 16 12 12 24 24 32 32 32 32 32 32 32 32 32 34 34 34 34 20 20 40 40 40 40 40 40 20 20 20 12 Final Carried 40 | 6 14 14 12 12 24 24 32 32 32 32 32 32 32 32 31 32 31 27 30 20 20 35 40 39 39 39 40 20 20 20 2 Class Distribution -------------------- 66% | Hauler-Mutant 21% | Scavenger-Mutant 12% | Mutant Dominant Class ---------------- Mutant | -10/Materials Mutant | -10/Mines Mutant | -10/Exiles Scavenger-Mutant | -9/Mines Hauler-Mutant | -8/Materials Hauler-Mutant | -8/Garrison Hauler-Mutant | -7/Factory Hauler-Mutant | -7/Lower Caves Hauler-Mutant | -7/Zion Hauler-Mutant | -6/Proximity Caves Hauler-Mutant | -6/Factory Hauler-Mutant | -6/Extension Hauler-Mutant | -6/Cetus Hauler-Mutant | -6/Archives Hauler-Mutant | -6/Hub_04(d) Hauler-Mutant | -5/Factory Hauler-Mutant | -5/Upper Caves Hauler-Mutant | -5/Upper Caves Scavenger-Mutant | -5/Zhirov Hauler-Mutant | -4/Proximity Caves Scavenger-Mutant | -4/Factory Scavenger-Mutant | -4/Upper Caves Hauler-Mutant | -4/Upper Caves Hauler-Mutant | -4/Warlord Hauler-Mutant | -3/Proximity Caves Hauler-Mutant | -3/Research Hauler-Mutant | -3/Testing Scavenger-Mutant | -2/Research Scavenger-Mutant | -2/Quarantine Scavenger-Mutant | -1/Access Scavenger-Mutant | -1/Command Resources | -11 -10 -10 -10 -9 -8 -8 -7 -7 -7 -6 -6 -6 -6 -6 -6 -5 -5 -5 -5 -4 -4 -4 -4 -4 -3 -3 -3 -2 -2 -1 -1 ----------- Run | Scr Mat Min Exi Min Mat Gar Fac Low Zio Pro Fac Ext Cet Arc Hub Fac Upp Upp Zhi Pro Fac Upp Upp War Pro Res Tes Res Qua Acc Com Matter Collected 12073 | 200 112 162 493 . 796 317 263 . 41 465 328 1070 90 . 219 505 504 222 134 1091 . 65 260 210 150 . 2047 735 397 83 1114 Remotely . | . . . . . . . . . . . . . . . . . . . . . . . . . . . . . . . . Salvage Created 28785 | . 358 160 374 52 1524 684 263 . . 283 710 1123 613 75 645 864 578 406 168 2111 11 144 540 680 259 73 3400 1047 2244 603 8793 Parts 1247 | . 30 9 58 2 88 33 16 . . 25 29 68 23 3 31 46 24 20 4 87 . 5 29 18 13 5 163 37 85 17 279 Haulers Intercepted 12 | . . . . . 5 . . . . . 2 1 . . 2 1 . . . . . . . . . . . 1 . . . Recyclers Shooed 12 | . 1 . . . 2 . . . . . 1 2 . . . . . . . 4 . . . . . . . . . 1 1 Parts Field Recycled . | . . . . . . . . . . . . . . . . . . . . . . . . . . . . . . . . Retrieved Matter . | . . . . . . . . . . . . . . . . . . . . . . . . . . . . . . . . Parts Self-Destructed 266 | . . . . . . . . . . 41 . . . . . . 12 7 2 97 . 2 12 86 7 . . . . . . Prevented 46 | . . . . . . . . . . . . . . . . . . 2 . 10 . 2 11 15 6 . . . . . . Kills | -11 -10 -10 -10 -9 -8 -8 -7 -7 -7 -6 -6 -6 -6 -6 -6 -5 -5 -5 -5 -4 -4 -4 -4 -4 -3 -3 -3 -2 -2 -1 -1 ------- Run | Scr Mat Min Exi Min Mat Gar Fac Low Zio Pro Fac Ext Cet Arc Hub Fac Upp Upp Zhi Pro Fac Upp Upp War Pro Res Tes Res Qua Acc Com Combat Hostiles Destroyed 436 | . 13 2 7 1 24 16 5 . . 6 9 11 9 1 4 18 15 14 . 16 . 5 16 9 6 4 52 15 37 10 111 Melee 7 | . . . 1 . 6 . . . . . . . . . . . . . . . . . . . . . . . . . . Guns 117 | . 4 1 . 1 15 8 4 . . 6 4 11 . 1 4 12 5 . . 15 . . 2 . . . 19 2 1 2 . Cannons 99 | . . . . . . 8 1 . . . . . . . . . 1 . . . . . 3 3 3 . 16 5 25 2 32 AOE 154 | . 9 1 6 . 3 . . . . . 5 . 5 . . 6 8 14 . 1 . 4 9 2 2 4 7 6 11 3 48 Classes Destroyed 31 | . 6 1 3 . 6 1 1 . . 3 . 1 . . . . 1 . . . . . 1 2 . . 4 . . . 1 Worker 17 | . . . . . 2 . . . . . 2 1 . . 2 2 . . . . . . . . . . 3 1 2 . 2 Builder 16 | . 1 . . . 1 . . . . . . 4 . . 5 1 . . . 2 . . . . . . 2 . . . . Tunneler 6 | . . 1 . . 3 . . . . . 1 1 . . . . . . . . . . . . . . . . . . . Hauler 12 | . . . . . 5 . . . . . 2 1 . . 2 1 . . . . . . . . . . . 1 . . . Recycler 12 | . . . . . 2 . . . . . 1 1 . . . . . . . 2 . . . . . . 1 . . . 5 Carrier 2 | . . . . . . . . . . . . . . . . . . . . . . . . . . . . . . . 2 Mechanic 4 | . 1 . . . . . . . . . . . . . . . . . . . . . . . . . . . . . 3 Operator 6 | . 1 . . . 2 . . . . . . . . . . . . . . . . . . . . . . . 2 . 1 Drone 1 | . . . . . . . . . . 1 . . . . . . . . . . . . . . . . . . . . . Turret 1 | . . . 1 . . . . . . . . . . . . . . . . . . . . . . . . . . . . Watcher 11 | . 1 . . . 1 . . . . . 2 . 2 . . . . . . 1 1 . . . . . 2 . . . 1 Swarmer 75 | . 3 . . . 4 4 . . . . 4 1 2 . . 10 7 6 . . . 4 10 1 3 4 6 6 . . . Saboteur 3 | . . . . . . . . . . . . . . . . . . . . . . . . . . . 1 . . 1 1 Grunt 149 | . 10 2 . 1 13 8 . . . . 3 3 . . 1 2 1 5 . 5 . . . 2 . . 13 1 18 3 58 Brawler 14 | . . . . . . 1 . . . . . . . . . 2 1 . . . . . . . . . 1 . . 1 8 Duelist 18 | . . . . . 1 . . . . . . 1 . . . . 3 . . . . . . . . . . . 1 . 12 Protector 10 | . . . . . . . . . . 2 . . . . . . . . . . . . . . . . . . 1 . 7 Researcher 1 | . . . . . . . . . . . . . . . . . . . . . . . . . . . 1 . . . . Sentry 43 | . . . . . 5 2 2 . . 1 1 5 . 1 2 . 2 1 . 6 . 1 . . . . 3 5 1 2 3 Demolisher 4 | . . . . . . . . . . 3 1 . . . . . . . . . . . . . . . . . . . . Specialist 4 | . . . . . . . . . . . . . . . . . . . . . . . 3 1 . . . . . . . Hunter 42 | . . . . . 1 1 2 . . . . . 2 . . 2 . 2 . 2 . . 2 . 2 . 7 . 10 3 6 Programmer 38 | . . . . . . . 1 . . . . . . . 1 2 . . . 2 . . 1 . 1 . 16 . 6 . 8 Q-Series 2 | . . . . . . . . . . . . . . . . . . . . . . . . . . . 2 . . . . Behemoth 6 | . . . . . . . . . . . . 1 . . . . . . . 2 . . . . . . . 2 . . 1 Cetus Guard 5 | . . . . . . . . . . . . . 5 . . . . . . . . . . . . . . . . . . M Guard 2 | . . . . . . . . . . . . . . . . . . . . . . . . . . . . . . . 2 Enhanced Grunt 1 | . . . . . . . . . . . . . . . 1 . . . . . . . . . . . . . . . . Combat Programmer 2 | . . . . . . . . . . . . . . . . . . . . . . . . . . . . . . . 2 Investigator 1 | . . . . . . . . . . . . . . . . . . . . . . . . . . . . . . . 1 Striker 8 | . . . . . . . . . . . . . . . . . . . . . . . . 4 . . 2 1 . . 1 Executioner 3 | . . . . . . . . . . . . . . . . . . . . . . . . 1 . . . . . . 2 Alpha 7 1 | . . . . . . . . . . . . . . . . . . . . . . . . . . . 1 . . . . Zionite 3 | . . . 3 . . . . . . . . . . . . . . . . . . . . . . . . . . . . Assembled 6 | . . . 6 . . . . . . . . . . . . . . . . . . . . . . . . . . . . Thug 2 | . . 1 . . . . . . . . . . . . . . . . . . . . . 1 . . . . . . . Mutant 1 | . . . . . . . . . . . . . . . . . 1 . . . . . . . . . . . . . . Best Kill Streak 19 | . 9 2 6 1 9 4 2 . . 2 8 4 4 1 6 6 5 9 . 7 1 4 5 4 3 4 7 4 13 5 19 Combat Bots Only 18 | . 7 2 6 1 7 4 2 . . 2 4 3 4 1 1 5 5 9 . 3 . 4 5 4 3 4 5 4 13 5 18 Max Kills in Single Turn 6 | . 2 2 2 1 3 1 1 . . 1 6 1 3 1 4 6 3 6 . 2 1 4 5 2 1 4 6 2 5 2 5 Gunslinging 1 | . . . . . 1 . . . . . . . . . . . . . . . . . . . . . 1 . . . . Exploded 6 | . 2 1 2 . 1 . . . . . 4 . 3 . . 5 3 6 . 1 . 4 5 2 1 4 4 2 5 2 5 Melee 1 | . . . 1 . 1 . . . . . . . . . . . . . . . . . . . . . . . . . . Uniques/NPCs Destroyed 4 | . . . 4 . . . . . . . . . . . . . . . . . . . . . . . . . . . . EX-BIN (-10/Exiles) EX-DEC (-10/Exiles) EX-HEX (-10/Exiles) 8R-AWN (-10/Exiles) Combat | -11 -10 -10 -10 -9 -8 -8 -7 -7 -7 -6 -6 -6 -6 -6 -6 -5 -5 -5 -5 -4 -4 -4 -4 -4 -3 -3 -3 -2 -2 -1 -1 -------- Run | Scr Mat Min Exi Min Mat Gar Fac Low Zio Pro Fac Ext Cet Arc Hub Fac Upp Upp Zhi Pro Fac Upp Upp War Pro Res Tes Res Qua Acc Com Damage Taken 53975 | . 510 . 605 66 1914 556 638 . . 247 560 2061 393 97 1071 1528 1796 708 . 6023 . 153 834 1465 207 214 8450 3298 4120 581 15880 Core 4049 | . 68 . 30 11 245 53 32 . . 16 92 157 12 . 70 132 168 12 . 560 . 24 51 39 . . 359 203 112 30 1573 Absorbed by Shields 2963 | . . . . . . . . . . . . 73 286 . . . . . . . . . . . . . . . . . 2604 Reduced by Siege Mode 1041 | . . . . . . . . . . . . 8 . . . 32 33 2 . 361 . . 21 78 . . 81 11 91 . 323 Core Remaining (%) 67 | 100 . . . 56 . 45 . . . 93 . . . . 61 . . . . 12 . . . . 90 . 72 . 78 . . Volleys Fired 1448 | . 45 13 48 6 82 41 25 . . 28 24 62 11 4 43 40 33 6 7 117 1 3 34 32 10 6 178 77 151 22 299 Largest 2 | . 2 2 1 2 2 2 2 . . 2 2 2 2 2 2 2 2 2 1 2 1 2 2 2 2 2 2 2 1 1 1 Hottest 200 | . 90 70 30 80 92 93 93 . . 56 56 56 105 65 115 113 114 116 35 127 94 162 162 162 180 180 191 150 120 81 200 Shots Fired 2115 | . 81 14 48 12 154 80 50 . . 54 47 124 20 5 74 78 58 8 7 202 1 5 54 57 15 8 292 101 150 22 294 Gun 1258 | . 63 12 43 12 149 39 44 . . 54 46 124 . 5 74 76 42 2 7 193 1 . 28 2 . . 163 46 3 18 12 Cannon 761 | . . 1 . . . 41 6 . . . . . 10 . . . 12 2 . 6 . 4 23 51 11 6 125 51 141 2 269 Launcher 86 | . 18 1 5 . 5 . . . . . 1 . 10 . . 2 4 4 . 3 . 1 3 . 4 2 4 4 6 2 7 Special 10 | . . . . . . . . . . . . . . . . . . . . . . . . 4 . . . . . . 6 Kinetic 985 | . . 1 43 . 108 39 44 . . 54 46 124 . 5 49 39 42 2 7 170 . . 16 . 1 2 124 39 3 . 27 Thermal 509 | . 31 . . . 7 41 6 . . . . . . . 25 37 . . . 13 1 . 12 2 1 4 51 35 141 . 102 Explosive 76 | . 18 1 5 . 5 . . . . . 1 . . . . 2 4 4 . 3 . 1 3 . 4 2 4 4 6 2 7 Electromagnetic 535 | . 32 12 . 12 34 . . . . . . . 20 . . . 12 2 . 16 . 4 23 51 9 . 113 23 . 20 152 Robot Hit Streak 42 | . 11 5 4 6 9 12 11 . . 8 12 18 6 4 10 11 18 4 11 23 . 9 13 20 7 2 20 19 33 17 42 Robot Miss Streak 10 | . 3 2 3 4 10 5 4 . . 6 9 10 2 2 3 2 6 8 . 2 . 1 5 4 1 5 6 9 4 2 5 Penetration Max 1 | . . . 1 . . . . . . . . . . . 1 1 . . 1 1 . . . . . . 1 . . . . Secondary Targets 11 | . 1 . . . 3 . . . . . . . . . . 4 . . . 1 . . . . . . 2 . . . . Max Gunslinging Chain 1 | . 1 . . . 1 . . . . . . . . . . 1 . . . 1 . . . . . . 1 . . . . Capacitor 450 | . . . . . . . . . . . . . . . . . . . . . . . . . . . . 35 141 20 254 Shots Hit Robots 1646 | . 53 9 59 5 130 55 37 . . 39 45 114 15 3 20 60 46 8 7 157 . 4 39 42 7 1 212 79 118 16 266 Core Hits 1434 | . 31 11 27 2 103 43 25 . . 42 66 146 18 1 30 36 56 40 4 75 1 5 22 17 8 12 157 59 146 25 226 Critical Hits 197 | . . . 15 . 1 2 . . . 1 . . . 1 7 6 1 . 2 25 . . 4 . . . 57 13 20 4 38 Critical Kills 58 | . . . 3 . 1 1 . . . . . . . . 3 1 . . . 6 . . 2 . . . 14 . 7 3 17 Critical Parts Destroyed 110 | . . . 7 . . 1 . . . 1 . . . 1 3 5 1 . 2 16 . . 2 . . . 35 8 13 1 14 Melee Attacks 65 | . . . 37 . 23 . . . . . 2 . . . . . . . . . . . . . . . . . . . 3 Kinetic 3 | . . . . . . . . . . . . . . . . . . . . . . . . . . . . . . . 3 Impact . | . . . . . . . . . . . . . . . . . . . . . . . . . . . . . . . . Slashing 62 | . . . 37 . 23 . . . . . 2 . . . . . . . . . . . . . . . . . . . . Piercing . | . . . . . . . . . . . . . . . . . . . . . . . . . . . . . . . . Sneak Attacks 4 | . . . 2 . 2 . . . . . . . . . . . . . . . . . . . . . . . . . . Combat Hostiles . | . . . . . . . . . . . . . . . . . . . . . . . . . . . . . . . . Follow-up Attacks . | . . . . . . . . . . . . . . . . . . . . . . . . . . . . . . . . Damage Inflicted 85609 | . 1529 181 2176 157 3737 1170 733 . . 838 2019 2698 1465 89 1581 2519 1991 1382 236 4252 5 394 1837 1885 562 355 7538 4221 8351 1414 30294 Guns 20829 | . 623 138 413 114 1718 493 652 . . 838 937 2698 . 89 829 1842 758 48 236 3691 . . 569 . . . 2339 1036 114 353 301 Cannons 27057 | . . . . . . 677 81 . . . . . 258 . . . 231 59 . 181 . 88 451 1359 334 . 3294 1965 4874 69 13136 Explosions 35307 | . 900 39 313 43 1461 . . . . . 1082 . 1207 . 735 677 1002 1275 . 380 . 306 817 526 228 355 1704 1220 3363 992 16682 Melee 2051 | . . . 1450 . 553 . . . . . . . . . . . . . . . . . . . . . . . . . 48 Ramming 365 | . 6 4 . . 5 . . . . . . . . . 17 . . . . . 5 . . . . . 201 . . . 127 Kinetic 18691 | . . . 413 . 1517 493 652 . . 838 937 2698 . 89 474 861 758 48 236 3257 . . 265 . . . 2032 1132 114 . 1877 Thermal 32481 | . 361 . . 43 773 677 81 . . . . . 361 . 355 981 . 48 . 240 . . 304 526 51 . 1605 1531 4874 . 19670 Explosive 18784 | . 773 39 313 . 722 . . . . . 1082 . . . . 677 1002 1227 . 380 . 306 817 . 228 355 1438 1135 3363 992 3935 Electromagnetic 13285 | . 389 138 . 114 167 . . . . . . . 1104 . 735 . 231 59 . 375 . 88 451 1359 283 . 2262 423 . 422 4685 Impact . | . . . . . . . . . . . . . . . . . . . . . . . . . . . . . . . . Slashing 2003 | . . . 1450 . 553 . . . . . . . . . . . . . . . . . . . . . . . . . . Piercing . | . . . . . . . . . . . . . . . . . . . . . . . . . . . . . . . . Highest Corruption 46 | . . . . . . . . . . . 2 2 . . 6 2 6 1 . 8 . . 2 . 1 . 9 . 6 . 46 Average Corruption 3 | . . . . . . . . . . . 2 1 . . 4 1 2 1 . 3 . . 1 . 1 . 2 . 1 . 7 Corruption Purged 32 | . . . . . . . . . . . . 2 . . . 1 6 1 . 3 . . 2 . . . 14 . . . 3 Effects 126 | . . . . . . . . . . . 2 4 . . 1 1 7 . . 18 . . 2 . . . 48 . 3 . 40 Message Errors 31 | . . . . . . . . . . . . 2 . . 1 . 1 . . 5 . . . . . . 14 . 1 . 7 Matter Fused 18 | . . . . . . . . . . . . . . . . . . . . 3 . . . . . . 7 . . . 8 Heat Flow Errors 8 | . . . . . . . . . . . 1 . . . . . 2 . . 1 . . . . . . 2 . . . 2 Energy Discharges 13 | . . . . . . . . . . . 1 1 . . . . 1 . . 2 . . . . . . 5 . . . 3 Data Loss (minor) 12 | . . . . . . . . . . . . 1 . . . . . . . 3 . . 1 . . . 4 . . . 3 Data Loss (major) 1 | . . . . . . . . . . . . . . . . . . . . . . . . . . . . . . . 1 Misfires 1 | . . . . . . . . . . . . . . . . . . . . . . . . . . . 1 . . . . Alerts 1 | . . . . . . . . . . . . . . . . . . . . . . . . . . . . . . . 1 Misdirections 2 | . . . . . . . . . . . . . . . . . . . . . . . . . . . . . . . 2 Targeting Errors 32 | . . . . . . . . . . . . . . . . 1 3 . . 4 . . . . . . 15 . 1 . 8 Weapon Failures 7 | . . . . . . . . . . . . . . . . . . . . . . . 1 . . . . . 1 . 5 Overload Shots . | . . . . . . . . . . . . . . . . . . . . . . . . . . . . . . . . Overflow Damage 3561 | . 18 . 28 . 122 15 . . . . 41 . 74 . . 24 31 11 . 6 . 1 114 . . 22 161 49 248 9 2587 Projectiles 1419 | . . . . . . 15 . . . . . . . . . . 25 . . . . . 55 . . . 132 17 228 . 947 Explosions 2027 | . 18 . . . 100 . . . . . 41 . 74 . . 24 6 11 . 6 . 1 59 . . 22 5 32 20 9 1599 Melee 115 | . . . 28 . 22 . . . . . . . . . . . . . . . . . . . . . 24 . . . 41 Knockbacks 28 | . . . . . . . . . . . . . . . . . . . . . . . . . . . 12 1 . . 15 Impact 1 | . . . . . . . . . . . . . . . . . . . . . . . . . . . . . . . 1 Kinetic 25 | . . . . . . . . . . . . . . . . . . . . . . . . . . . 11 1 . . 13 Secondary 2 | . . . . . . . . . . . . . . . . . . . . . . . . . . . 1 . . . 1 Self-Inflicted Damage 1896 | . 112 . . . 318 . . . . . 84 . . . 111 30 117 104 . 52 . . 44 70 28 17 199 47 . 131 432 Shots 58 | . 6 . . . 5 . . . . . 1 . . . 2 1 6 4 . 2 . . 2 1 1 1 9 2 . 6 9 Rammed 19 | . 2 2 . . 1 . . . . . . . . . 2 . . . . . . . . . . . 5 . . . 7 Targets Rammed 21 | . 2 2 . . 1 . . . . . . . . . 2 . . . . . 1 . . . . . 6 . . . 7 Kicked . | . . . . . . . . . . . . . . . . . . . . . . . . . . . . . . . . Crushed 2 | . . . . . . . . . . . . . . . . . . . . . 1 . . . . . 1 . . . . Highest Temperature 344 | . 302 9 . 344 334 160 54 . . . 236 195 188 24 197 199 196 114 . 120 56 . 192 199 178 135 196 108 . . 323 Average Temperature 93 | . 118 6 . 182 99 39 25 . . . 125 58 94 9 110 111 90 44 . 69 38 . 89 111 68 72 101 42 . . 99 Received Heat Transfer 6465 | . 204 . . 39 720 252 156 . . . 108 582 . . 69 78 180 93 . 579 . 18 18 135 . . 687 324 405 36 1782 Effects 2 | . . . . . 2 . . . . . . . . . . . . . . . . . . . . . . . . . . Energy Bleed 2 | . . . . . 2 . . . . . . . . . . . . . . . . . . . . . . . . . . Siege Activations 60 | . . . . . . . . . . . . 1 1 . . 4 3 2 . 12 . 1 4 3 2 1 8 1 4 . 13 Total Turns 1385 | . . . . . . . . . . . . 54 8 . . 88 48 16 . 364 . 2 58 45 7 5 240 17 89 . 344 Longest Duration 97 | . . . . . . . . . . . . 54 8 . . 31 19 9 . 87 . 2 24 24 6 5 60 17 34 . 97 Robots Corrupted 56 | . . . . . . . . . . . . . 4 . 1 . 1 . . 1 . 1 2 4 1 . 10 2 . 2 27 Combat Hostiles 53 | . . . . . . . . . . . . . 4 . . . 1 . . . . 1 2 4 1 . 10 2 . 2 26 Parts Fried 125 | . . . . 1 1 . . . . . . 2 6 . 4 . . . . 2 . 1 5 14 4 . 25 4 . 3 53 Impact Corruptions 3 | . . . . . . . . . . . . . . . . . . . . . . . . . . . 1 . . . 2 Robots Melted 3 | . . . . . . . . . . . . . . . . . . . . . . . . . . . . . . . 3 Combat Hostiles 3 | . . . . . . . . . . . . . . . . . . . . . . . . . . . . . . . 3 Parts Melted 32 | . . . . . . 2 . . . . . 1 . . 4 1 . . . 1 . . 1 . . . 5 3 . . 14 Heat Transferred 25316 | . 723 . . 50 561 925 111 . . . . . 250 . 407 1221 . 50 . 296 . . 333 500 25 . 1046 1271 4070 . 13477 Parts Sabotaged 1 | . . . . . . . . . . . . . . . . . . . . . . . . . . . . . . . 1 Parts Stolen . | . . . . . . . . . . . . . . . . . . . . . . . . . . . . . . . . Parts Stripped . | . . . . . . . . . . . . . . . . . . . . . . . . . . . . . . . . Power Chain Reactions 14 | . 3 . . 1 . . . . . . . . 2 . . . . 1 . . . . . 1 . . 1 1 . . 4 Missiles Intercepted 5 | . . . . . . . . . . . . . . . . . . . . . . . . . . . . . . . 5 Alert | -11 -10 -10 -10 -9 -8 -8 -7 -7 -7 -6 -6 -6 -6 -6 -6 -5 -5 -5 -5 -4 -4 -4 -4 -4 -3 -3 -3 -2 -2 -1 -1 ------- Run | Scr Mat Min Exi Min Mat Gar Fac Low Zio Pro Fac Ext Cet Arc Hub Fac Upp Upp Zhi Pro Fac Upp Upp War Pro Res Tes Res Qua Acc Com Peak Influence 3365 | . 496 197 . 30 658 985 594 . . . 306 465 672 476 1337 1011 . . . . 130 . . . . 204 1017 886 1318 1187 3365 Initial 790 | . . 147 . . 11 430 516 . . . 14 149 226 268 166 632 . . . . 51 . . . . 54 114 571 498 790 649 Average 561 | . 219 47 . 1 261 737 478 . . . 120 145 468 405 569 833 . . . . 74 . . . . 125 495 690 1078 1007 1765 Maximum Alert Level 5 | . 2 . . . 2 3 2 . . . 1 2 2 2 4 3 . . . . . . . . . 1 3 3 4 4 5 Low Security (%) 32 | . 39 100 . 100 36 . . . . . 72 75 . . 19 . . . . . 100 . . . . 66 29 . . . . Level 1 13 | . 48 . . . 55 . 25 . . . 27 14 52 44 2 . . . . . . . . . . 33 10 . . . . Level 2 23 | . 12 . . . 8 55 74 . . . . 10 47 55 51 32 . . . . . . . . . . 32 56 7 . 2 Level 3 19 | . . . . . . 44 . . . . . . . . 21 67 . . . . . . . . . . 27 43 41 70 16 Level 4 6 | . . . . . . . . . . . . . . . 5 . . . . . . . . . . . . . 50 29 27 Level 5 1 | . . . . . . . . . . . . . . . . . . . . . . . . . . . . . . . 20 High Security 2 | . . . . . . . . . . . . . . . . . . . . . . . . . . . . . . . 32 Max Security . | . . . . . . . . . . . . . . . . . . . . . . . . . . . . . . . . Squads Dispatched 87 | . 5 . . . 4 . 2 . . . 3 2 . . 8 2 . . . . 1 . . . . . 17 1 15 2 25 Investigation 6 | . 2 . . . 2 . 1 . . . . . . . . . . . . . . . . . . . . . 1 . . Extermination 16 | . . . . . . . 1 . . . . . . . 1 . . . . . . . . . . . 9 . 2 1 2 Reinforcement 29 | . 3 . . . 1 . . . . . 3 2 . . 4 1 . . . . 1 . . . . . 4 1 7 . 2 Assault 27 | . . . . . . . . . . . . . . . 1 1 . . . . . . . . . . 1 . 2 1 21 Garrison 9 | . . . . . 1 . . . . . . . . . 2 . . . . . . . . . . . 3 . 3 . . Intercept . | . . . . . . . . . . . . . . . . . . . . . . . . . . . . . . . . Construction Impeded 5 | . . . . . . . . . . . 1 2 . . 1 . . . . . . . . . . . 1 . . . . Haulers Reinforced 4 | . . . . . . . . . . . 2 . . . 1 . . . . . . . . . . . . 1 . . . Stealth | -11 -10 -10 -10 -9 -8 -8 -7 -7 -7 -6 -6 -6 -6 -6 -6 -5 -5 -5 -5 -4 -4 -4 -4 -4 -3 -3 -3 -2 -2 -1 -1 --------- Run | Scr Mat Min Exi Min Mat Gar Fac Low Zio Pro Fac Ext Cet Arc Hub Fac Upp Upp Zhi Pro Fac Upp Upp War Pro Res Tes Res Qua Acc Com Distress Signals 39 | . 1 . . . 3 . . . . 8 1 1 2 . 3 1 . . . 2 1 . . . . . 3 10 . 1 2 Communications Jammed . | . . . . . . . . . . . . . . . . . . . . . . . . . . . . . . . . Distress Signals . | . . . . . . . . . . . . . . . . . . . . . . . . . . . . . . . . Times Spotted 727 | . 28 . 12 3 49 16 6 . . 12 12 33 15 4 25 26 14 15 . 26 5 5 17 43 6 4 78 36 47 16 174 Peak Tracking Total 16 | . 7 . 9 3 7 4 2 . . 3 5 5 6 2 10 8 5 7 . 5 5 4 5 13 3 4 5 7 10 6 16 Tactical Retreats 27 | . 2 . 1 . 5 . . . . 1 . . . . 1 . . . . 2 1 . . 1 . . 3 . 1 . 9 Traps | -11 -10 -10 -10 -9 -8 -8 -7 -7 -7 -6 -6 -6 -6 -6 -6 -5 -5 -5 -5 -4 -4 -4 -4 -4 -3 -3 -3 -2 -2 -1 -1 ------- Run | Scr Mat Min Exi Min Mat Gar Fac Low Zio Pro Fac Ext Cet Arc Hub Fac Upp Upp Zhi Pro Fac Upp Upp War Pro Res Tes Res Qua Acc Com Traps Triggered 18 | . 1 . . . 2 8 3 . . . . 1 . . . . . . . 2 . . . . . . . . 1 . . Indirectly 2 | . . . . . 2 . . . . . . . . . . . . . . . . . . . . . . . . . . Trap Hack Attempts . | . . . . . . . . . . . . . . . . . . . . . . . . . . . . . . . . Triggered . | . . . . . . . . . . . . . . . . . . . . . . . . . . . . . . . . Disarmed . | . . . . . . . . . . . . . . . . . . . . . . . . . . . . . . . . Reprogrammed . | . . . . . . . . . . . . . . . . . . . . . . . . . . . . . . . . Reused . | . . . . . . . . . . . . . . . . . . . . . . . . . . . . . . . . Traps Extracted . | . . . . . . . . . . . . . . . . . . . . . . . . . . . . . . . . Installed . | . . . . . . . . . . . . . . . . . . . . . . . . . . . . . . . . Triggered 9 | . . . . . . . . . . . . . . . . . . . . . . . . 9 . . . . . . . Machines | -11 -10 -10 -10 -9 -8 -8 -7 -7 -7 -6 -6 -6 -6 -6 -6 -5 -5 -5 -5 -4 -4 -4 -4 -4 -3 -3 -3 -2 -2 -1 -1 ---------- Run | Scr Mat Min Exi Min Mat Gar Fac Low Zio Pro Fac Ext Cet Arc Hub Fac Upp Upp Zhi Pro Fac Upp Upp War Pro Res Tes Res Qua Acc Com Machines Disabled 77 | . 2 . 7 . 9 . . . . 2 8 3 . 2 16 1 2 . 1 2 . . 1 . . . 11 1 2 . 7 Max in Single Turn 9 | . 1 . 2 . 3 . . . . 1 4 . . 1 9 1 1 . 1 1 . . 1 . . . 1 1 1 . 2 Garrison Access 5 | . . . . . . . . . . . . . . . 2 . . . . . . . . . . . 1 2 . . . Network Hub 2 | . . . . . . . . . . . . . . . 2 . . . . . . . . . . . . . . . . Machines Sabotaged . | . . . . . . . . . . . . . . . . . . . . . . . . . . . . . . . . Garrisons Compromised . | . . . . . . . . . . . . . . . . . . . . . . . . . . . . . . . . Overloaded Fab Kills . | . . . . . . . . . . . . . . . . . . . . . . . . . . . . . . . . Fab Network Shutdowns . | . . . . . . . . . . . . . . . . . . . . . . . . . . . . . . . . Hacking | -11 -10 -10 -10 -9 -8 -8 -7 -7 -7 -6 -6 -6 -6 -6 -6 -5 -5 -5 -5 -4 -4 -4 -4 -4 -3 -3 -3 -2 -2 -1 -1 --------- Run | Scr Mat Min Exi Min Mat Gar Fac Low Zio Pro Fac Ext Cet Arc Hub Fac Upp Upp Zhi Pro Fac Upp Upp War Pro Res Tes Res Qua Acc Com Machines Accessed 60 | . 3 . 2 . 5 . 4 . 1 . 1 2 . . 2 1 . . 4 1 2 1 . 5 . 1 10 2 4 6 3 Terminals 31 | . 2 . . . 4 . 1 . . . 1 2 . . 1 . . . . . 2 . . . . 1 7 . 2 5 3 Fabricators 4 | . . . . . . . 1 . . . . . . . . 1 . . . 1 . . . . . . 1 . . . . Repair Stations 1 | . . . . . . . . . . . . . . . . . . . . . . . . . . . . . 1 . . Recycling Units 2 | . 1 . . . . . 1 . . . . . . . . . . . . . . . . . . . . . . . . Scanalyzers 4 | . . . . . . . 1 . . . . . . . . . . . . . . . . . . . 1 . 1 1 . Garrison Access 5 | . . . . . 1 . . . . . . . . . 1 . . . . . . . . . . . 1 2 . . . Total Hacks 194 | . 10 . 2 . 13 . 14 . 6 . 3 5 . . 3 5 . . 17 8 12 1 . 12 . 1 44 4 12 11 11 Successful 101 | . 5 . 2 . 2 . 11 . 6 . 1 2 . . 2 2 . . 17 4 3 1 . 12 . 1 18 2 3 6 1 Failed 92 | . 4 . . . 11 . 3 . . . 2 3 . . 1 3 . . . 4 9 . . . . . 26 2 9 5 10 Catastrophic 12 | . . . . . 1 . 1 . . . . . . . . . . . . . . . . . . . 5 . 1 2 2 Database Lockouts 1 | . 1 . . . . . . . . . . . . . . . . . . . . . . . . . . . . . . Manual 50 | . 8 . 1 . 10 . 2 . . . 1 . 1 . . . . . . . 4 . 2 . . 1 12 . . . 8 Terminals 103 | . 9 . . . 12 . 2 . . . 3 5 . . 2 . . . . . 12 . . . . 1 32 . 5 9 11 Fabricators 22 | . . . . . . . 4 . . . . . . . . 5 . . . 8 . . . . . . 5 . . . . Repair Stations 4 | . . . . . . . . . . . . . . . . . . . . . . . . . . . . . 4 . . Recycling Units 3 | . 1 . . . . . 2 . . . . . . . . . . . . . . . . . . . . . . . . Scanalyzers 17 | . . . . . . . 6 . . . . . . . . . . . . . . . . . . . 6 . 3 2 . Garrison Access 7 | . . . . . 1 . . . . . . . . . 1 . . . . . . . . . . . 1 4 . . . Terminal Hacks 64 | . 3 . 2 . 1 . 1 . 6 . 1 2 . . 1 . . . 17 . 2 1 . 12 . 1 9 . 1 4 . Record 15 | . 1 . 1 . . . . . . . . . . . . . . . 5 . . . . 6 . . 1 . 1 . . Part Schematic 10 | . . . . . . . . . 6 . . . . . . . . . 4 . . . . . . . . . . . . Robot Analysis 6 | . 2 . . . . . . . . . . . . . . . . . 4 . . . . . . . . . . . . Prototype ID Bank 11 | . . . . . 1 . . . . . . . . . . . . . 4 . . . . 5 . . 1 . . . . Open Door 8 | . . . . . . . . . . . . 2 . . . . . . . . . 1 . 1 . . 1 . . 3 . Branch Access Points 3 | . . . . . . . 1 . . . . . . . . . . . . . 1 . . . . 1 . . . . . Machine Index 1 | . . . . . . . . . . . . . . . . . . . . . 1 . . . . . . . . . . Terminal Index 1 | . . . . . . . . . . . . . . . . . . . . . . . . . . . 1 . . . . Alert Level 3 | . . . . . . . . . . . . . . . . . . . . . . . . . . . 3 . . . . Unreport Threat 3 | . . . . . . . . . . . . . . . 1 . . . . . . . . . . . 1 . . 1 . Hauler Manifests 1 | . . . . . . . . . . . . . . . . . . . . . . . . . . . 1 . . . . Zone Layout 1 | . . . . . . . . . . . 1 . . . . . . . . . . . . . . . . . . . . EX-Prototype ID Bank 1 | . . . 1 . . . . . . . . . . . . . . . . . . . . . . . . . . . . Fabricator Hacks 12 | . . . . . . . 4 . . . . . . . . 2 . . . 4 . . . . . . 2 . . . . Load Schematic 4 | . . . . . . . 1 . . . . . . . . 1 . . . 1 . . . . . . 1 . . . . Build 8 | . . . . . . . 3 . . . . . . . . 1 . . . 3 . . . . . . 1 . . . . Repair Station Hacks 1 | . . . . . . . . . . . . . . . . . . . . . . . . . . . . . 1 . . Scan Component 1 | . . . . . . . . . . . . . . . . . . . . . . . . . . . . . 1 . . Recycling Unit Hacks . | . . . . . . . . . . . . . . . . . . . . . . . . . . . . . . . . Scanalyzer 13 | . . . . . . . 6 . . . . . . . . . . . . . . . . . . . 4 . 1 2 . Insert Component 10 | . . . . . . . 3 . . . . . . . . . . . . . . . . . . . 4 . 1 2 . Analyze 3 | . . . . . . . 3 . . . . . . . . . . . . . . . . . . . . . . . . Garrison Access Hacks 5 | . . . . . 1 . . . . . . . . . 1 . . . . . . . . . . . 1 2 . . . Unlock Access 1 | . . . . . 1 . . . . . . . . . . . . . . . . . . . . . . . . . . Seal Access 4 | . . . . . . . . . . . . . . . 1 . . . . . . . . . . . 1 2 . . . Unauthorized Hacks 6 | . 2 . . . . . . . . . . . . . . . . . . . 1 . . . . . 2 . . . 1 Terminals 5 | . 1 . . . . . . . . . . . . . . . . . . . 1 . . . . . 2 . . . 1 Track 3 | . 1 . . . . . . . . . . . . . . . . . . . 1 . . . . . 1 . . . . Botnet 2 | . . . . . . . . . . . . . . . . . . . . . . . . . . . 1 . . . 1 Fabricators . | . . . . . . . . . . . . . . . . . . . . . . . . . . . . . . . . Repair Stations . | . . . . . . . . . . . . . . . . . . . . . . . . . . . . . . . . Recycling Units 1 | . 1 . . . . . . . . . . . . . . . . . . . . . . . . . . . . . . Tunnel 1 | . 1 . . . . . . . . . . . . . . . . . . . . . . . . . . . . . . Scanalyzers . | . . . . . . . . . . . . . . . . . . . . . . . . . . . . . . . . Garrison Access . | . . . . . . . . . . . . . . . . . . . . . . . . . . . . . . . . Data Cores Recovered . | . . . . . . . . . . . . . . . . . . . . . . . . . . . . . . . . Used . | . . . . . . . . . . . . . . . . . . . . . . . . . . . . . . . . Hacking Detections 31 | . 2 . . . 4 . 2 . . . 1 . . . 1 1 . . . 1 2 . . . . . 9 . 3 2 3 Full Trace Events 1 | . . . . . . . . . . . . . . . . . . . . . . . . . . . . . 1 . . Feedback Events . | . . . . . . . . . . . . . . . . . . . . . . . . . . . . . . . . Feedback Blocked . | . . . . . . . . . . . . . . . . . . . . . . . . . . . . . . . . Robot Schematics Acquired . | . . . . . . . . . . . . . . . . . . . . . . . . . . . . . . . . Robots Built . | . . . . . . . . . . . . . . . . . . . . . . . . . . . . . . . . Matter . | . . . . . . . . . . . . . . . . . . . . . . . . . . . . . . . . Time . | . . . . . . . . . . . . . . . . . . . . . . . . . . . . . . . . Total Robot Build Rating . | . . . . . . . . . . . . . . . . . . . . . . . . . . . . . . . . Part Schematics Acquired 13 | . . . . . . . 3 . 6 . . . . . . . . . 4 . . . . . . . . . . . . Parts Built 7 | . . . . . . . 5 . . . . . . . . 1 . . . . . . . . . . 1 . . . . Matter 774 | . . . . . . . 570 . . . . . . . . 102 . . . . . . . . . . 102 . . . . Time 335 | . . . . . . . 285 . . . . . . . . 25 . . . . . . . . . . 25 . . . . Total Part Build Rating 31 | . . . . . . . 29 . . . . . . . . 1 . . . . . . . . . . 1 . . . . Parts Repaired . | . . . . . . . . . . . . . . . . . . . . . . . . . . . . . . . . Time . | . . . . . . . . . . . . . . . . . . . . . . . . . . . . . . . . Parts Recycled . | . . . . . . . . . . . . . . . . . . . . . . . . . . . . . . . . Recycled Matter . | . . . . . . . . . . . . . . . . . . . . . . . . . . . . . . . . Retrieved Matter . | . . . . . . . . . . . . . . . . . . . . . . . . . . . . . . . . Retrieved Components . | . . . . . . . . . . . . . . . . . . . . . . . . . . . . . . . . Parts Scanalyzed 3 | . . . . . . . 3 . . . . . . . . . . . . . . . . . . . . . . . . Part Schematics Acquired 3 | . . . . . . . 3 . . . . . . . . . . . . . . . . . . . . . . . . Parts Damaged . | . . . . . . . . . . . . . . . . . . . . . . . . . . . . . . . . Bothacking | -11 -10 -10 -10 -9 -8 -8 -7 -7 -7 -6 -6 -6 -6 -6 -6 -5 -5 -5 -5 -4 -4 -4 -4 -4 -3 -3 -3 -2 -2 -1 -1 ------------ Run | Scr Mat Min Exi Min Mat Gar Fac Low Zio Pro Fac Ext Cet Arc Hub Fac Upp Upp Zhi Pro Fac Upp Upp War Pro Res Tes Res Qua Acc Com Used RIF Installer . | . . . . . . . . . . . . . . . . . . . . . . . . . . . . . . . . Robots Hacked . | . . . . . . . . . . . . . . . . . . . . . . . . . . . . . . . . Non-combat . | . . . . . . . . . . . . . . . . . . . . . . . . . . . . . . . . Combat . | . . . . . . . . . . . . . . . . . . . . . . . . . . . . . . . . Robot Hacks Applied . | . . . . . . . . . . . . . . . . . . . . . . . . . . . . . . . . Relay Couplers Released 2 | . . . . . . . . . . . . . . . 2 . . . . . . . . . . . . . . . . Machine Destruction 2 | . . . . . . . . . . . . . . . 2 . . . . . . . . . . . . . . . . Robots Rewired 15 | . . . . . . . . . . 2 . 7 . . . . . . . 6 . . . . . . . . . . . Allies Hacked 1 | . . . . . . . . . . . 1 . . . . . . . . . . . . . . . . . . . . Hacks Repelled . | . . . . . . . . . . . . . . . . . . . . . . . . . . . . . . . . Allies | -11 -10 -10 -10 -9 -8 -8 -7 -7 -7 -6 -6 -6 -6 -6 -6 -5 -5 -5 -5 -4 -4 -4 -4 -4 -3 -3 -3 -2 -2 -1 -1 -------- Run | Scr Mat Min Exi Min Mat Gar Fac Low Zio Pro Fac Ext Cet Arc Hub Fac Upp Upp Zhi Pro Fac Upp Upp War Pro Res Tes Res Qua Acc Com Total Allies 38 | . . 6 . . . . . . 6 2 . 10 5 . . . . . . 6 . . . . . . . . . 3 . Largest Group 6 | . . 5 5 . . . . . 6 6 3 6 6 6 5 . . . . 6 3 . . . . . . . . 3 . Highest-Rated Group 626 | . . 83 83 . . . . . 161 161 88 212 626 626 470 . . . . 288 143 . . . . . . . . 368 . Highest-Rated Ally 156 | . . 31 31 . . . . . 31 34 34 156 156 156 94 . . . . 49 49 . . . . . . . . 131 . Total Orders 4 | . . . 1 . . . . . . . . 3 . . . . . . . . . . . . . . . . . . . STAY 1 | . . . 1 . . . . . . . . . . . . . . . . . . . . . . . . . . . . RETURN 3 | . . . . . . . . . . . . 3 . . . . . . . . . . . . . . . . . . . Ally Attacks 411 | . . . 14 . . . . . . 53 8 139 19 24 71 . . . . 35 8 . . . . . . . . 40 . Total Damage 11870 | . . . 66 . . . . . . 859 307 3141 501 816 2785 . . . . 1347 362 . . . . . . . . 1686 . Kills 73 | . . . 1 . . . . . . 9 2 24 5 3 17 . . . . 2 3 . . . . . . . . 7 . Allies Corrupted 3 | . . . . . . . . . . . . . . . 2 . . . . 1 . . . . . . . . . . . Allies Melted . | . . . . . . . . . . . . . . . . . . . . . . . . . . . . . . . . Intel | -11 -10 -10 -10 -9 -8 -8 -7 -7 -7 -6 -6 -6 -6 -6 -6 -5 -5 -5 -5 -4 -4 -4 -4 -4 -3 -3 -3 -2 -2 -1 -1 ------- Run | Scr Mat Min Exi Min Mat Gar Fac Low Zio Pro Fac Ext Cet Arc Hub Fac Upp Upp Zhi Pro Fac Upp Upp War Pro Res Tes Res Qua Acc Com Robot Analysis Total 6 | . 2 . . . . . . . . . . . . . . . . . 4 . . . . . . . . . . . . Derelict Logs Recovered 9 | . . 1 . . . . . . 2 . . . . . . . . 1 . 1 . 2 2 . . . . . . . . Drone Launches 3 | . . . . . . . . . . . . 3 . . . . . . . . . . . . . . . . . . . Drone Recoveries 3 | . . . . . . . . . . . . 3 . . . . . . . . . . . . . . . . . . . Exploration | -11 -10 -10 -10 -9 -8 -8 -7 -7 -7 -6 -6 -6 -6 -6 -6 -5 -5 -5 -5 -4 -4 -4 -4 -4 -3 -3 -3 -2 -2 -1 -1 ------------- Run | Scr Mat Min Exi Min Mat Gar Fac Low Zio Pro Fac Ext Cet Arc Hub Fac Upp Upp Zhi Pro Fac Upp Upp War Pro Res Tes Res Qua Acc Com Turns Passed 32231 | . 610 1689 1908 183 1506 1091 1057 257 2051 1199 736 1788 360 90 437 627 976 718 335 1903 153 889 1387 1548 627 192 3662 1060 872 674 1646 Spaces Moved 13567 | 1 271 1010 973 24 594 472 448 142 1086 590 321 657 151 40 162 203 437 338 155 645 83 469 633 685 283 86 1244 374 280 284 426 Core 1 | . . . . . . . . . . . . . . . . . . . . . . . . . . . . . . . 1 Treads 12384 | . 263 1010 703 . 543 472 448 142 1086 590 321 657 151 40 162 203 437 338 155 645 83 469 633 685 283 86 545 245 280 284 425 Legs 1117 | 1 8 . 205 24 51 . . . . . . . . . . . . . . . . . . . . . 699 129 . . . Wheels . | . . . . . . . . . . . . . . . . . . . . . . . . . . . . . . . . Hover 65 | . . . 65 . . . . . . . . . . . . . . . . . . . . . . . . . . . . Flight . | . . . . . . . . . . . . . . . . . . . . . . . . . . . . . . . . Fastest Speed 80 | 120 120 160 80 120 150 192 180 180 180 180 180 200 200 200 180 180 180 200 200 160 180 180 200 200 200 200 200 180 220 220 135 Average Speed 192 | 120 158 161 165 125 195 197 187 180 187 184 198 200 200 200 184 198 185 200 200 180 180 181 200 200 200 200 225 225 224 220 211 Slowest Speed 1050 | 120 160 180 180 150 205 205 192 180 200 200 200 200 200 200 200 200 200 200 200 200 180 200 200 200 200 200 380 290 230 220 1050 Overloaded Moves . | . . . . . . . . . . . . . . . . . . . . . . . . . . . . . . . . Propulsion Burnouts . | . . . . . . . . . . . . . . . . . . . . . . . . . . . . . . . . Robots Hopped . | . . . . . . . . . . . . . . . . . . . . . . . . . . . . . . . . Cave-ins Triggered 1 | . . . . . . . . . . . . . . . . . 1 . . . . . . . . . . . . . . Exploration Rate (%) 47 | 2 52 99 90 9 57 64 14 17 85 69 12 83 56 63 31 8 58 59 62 57 2 69 74 90 55 5 91 19 43 10 28 Regions Visited 31 Branch Regions 21 Pre-discovered Areas 9 | . 1 . 1 . . . . . 2 . . . . . . . . . 3 . . . 2 . . . . . . . . Known Exits Taken 8 | . . 1 . . 1 . 1 . . . . 1 . . . . . . . 1 1 . . . . 1 . . . 1 . Unknown Exits Taken 22 | 1 1 . 1 1 . . . 1 1 1 1 . 1 1 1 1 1 1 1 . . 1 1 1 1 . 1 1 1 . . Scrap Searched 17 | . . 1 . . . . . . 2 2 . . . . . . 2 1 . 3 . 3 2 . 1 . . . . . . Spaces Dug 106 | . . . . . 1 . . . . . 2 . . . 16 . . . . . 1 . 1 2 . 45 6 . 1 21 10 Terrain Destroyed 1575 | . 73 8 22 8 132 . 1 . . 1 76 . 24 2 334 40 75 131 . 53 1 30 68 3 72 71 60 79 88 30 93 Melee 3 | . . . . . 1 . . . . . 2 . . . . . . . . . . . . . . . . . . . . Projectile 135 | . . . 4 . . . 1 . . 1 . . . 2 25 2 2 . . 19 1 . 3 2 1 6 28 13 19 . 6 AOE 1437 | . 73 8 18 8 131 . . . . . 74 . 24 . 309 38 73 131 . 34 . 30 65 1 71 65 32 66 69 30 87 Terrain Rammed . | . . . . . . . . . . . . . . . . . . . . . . . . . . . . . . . . Walls Destroyed . | . . . . . . . . . . . . . . . . . . . . . . . . . . . . . . . . Machines Disabled . | . . . . . . . . . . . . . . . . . . . . . . . . . . . . . . . . Actions | -11 -10 -10 -10 -9 -8 -8 -7 -7 -7 -6 -6 -6 -6 -6 -6 -5 -5 -5 -5 -4 -4 -4 -4 -4 -3 -3 -3 -2 -2 -1 -1 --------- Run | Scr Mat Min Exi Min Mat Gar Fac Low Zio Pro Fac Ext Cet Arc Hub Fac Upp Upp Zhi Pro Fac Upp Upp War Pro Res Tes Res Qua Acc Com Total 17941 | . 370 1060 1180 169 804 564 624 143 1099 649 369 1004 195 45 223 345 535 364 173 1180 86 508 717 833 334 99 1809 521 505 330 1104 Wait 1630 | . 25 7 66 139 32 4 84 . . 9 6 143 8 . 14 59 44 12 . 300 2 10 34 63 11 5 231 15 47 1 259 Move 13535 | . 270 1009 972 23 594 468 447 141 1085 589 320 656 150 39 161 202 436 337 154 644 83 468 632 684 282 85 1243 373 279 283 426 Hop . | . . . . . . . . . . . . . . . . . . . . . . . . . . . . . . . . Pick Up 319 | . 15 13 22 . 25 7 26 . 4 4 3 8 10 . . 11 2 . 3 29 . 13 4 14 23 1 47 9 6 7 13 Fast Attach 104 | . 1 1 9 . 11 3 5 . 1 1 2 1 1 . . 2 1 . 5 3 . 2 . 8 . . 11 13 4 3 16 Attach 157 | . 4 1 3 . 7 2 4 . 3 2 5 6 3 . 1 6 5 4 . 25 . 2 2 6 1 1 20 7 4 4 29 Detach 40 | . . . 1 . 1 1 . . . . 2 . . . . . 2 . . 4 . 2 2 1 . . 4 4 . . 16 Swap 178 | . 2 5 3 1 11 7 7 2 1 3 3 13 . 2 2 16 11 5 . 11 . 3 9 3 5 1 33 5 6 2 6 Drop 256 | . 6 9 19 . 17 15 22 . 5 4 2 5 12 . . 9 1 . 4 4 . 5 . 22 2 . 36 18 8 8 23 Fire 1448 | . 45 13 48 6 82 41 25 . . 28 24 62 11 4 43 40 33 6 7 117 1 3 34 32 10 6 178 77 151 22 299 Melee 65 | . . . 37 . 23 . . . . . 2 . . . . . . . . . . . . . . . . . . . 3 Ram . | . . . . . . . . . . . . . . . . . . . . . . . . . . . . . . . . Kick 1 | . . . . . 1 . . . . . . . . . . . . . . . . . . . . . . . . . . Crush 19 | . 2 2 . . . . . . . . . . . . 2 . . . . . . . . . . . 6 . . . 7 Escape Stasis 28 | . . . . . . 16 4 . . . . 2 . . . . . . . . . . . . . . . . . . 6 Rewire 161 | . . . . . . . . . . 9 . 108 . . . . . . . 43 . . . . . . . . . . 1 Trap . | . . . . . . . . . . . . . . . . . . . . . . . . . . . . . . . . Miscellaneous . | . . . . . . . . . . . . . . . . . . . . . . . . . . . . . . . . Route ------- -11/Scrapyard -10/Materials (discovered 2 exits: *Mat / [*Min]) -10/Mines (discovered 3 exits: *Mat x2 / *Exi) -10/Exiles -9/Mines -8/Materials (discovered 3 exits: *Fac x2 / Gar) -8/Garrison (discovered 3 exits: *Fac x3) -7/Factory (discovered 3 exits: Sto / *Low x2) -7/Lower Caves -7/Zion -6/Proximity Caves -6/Factory (discovered 2 exits: *Fac / *Ext) -6/Extension (discovered 2 exits: *Fac / *Cet) -6/Cetus (discovered 2 exits: *Fac / [*Arc]) -6/Archives -6/Hub_04(d) (discovered 2 exits: *Fac x2) -5/Factory -5/Upper Caves -5/Upper Caves (discovered 2 exits: *Fac / *Zhi) -5/Zhirov -4/Proximity Caves -4/Factory (discovered 2 exits: *Upp x2) -4/Upper Caves -4/Upper Caves (discovered 2 exits: *Res / *War) -4/Warlord -3/Proximity Caves -3/Research (discovered 3 exits: Arm / *Tes x2) -3/Testing -2/Research -2/Quarantine -1/Access (discovered 2 exits: Sur / *Com) -1/Command History --------- Turn | Location | Event 1 | -11/Scrapyard | Discovered new exit (range 0) 1 | -11/Scrapyard | Entered Materials 301 | -10/Materials | Build established: Mutant 307 | -10/Materials | Discovered new exit (range 6) 354 | -10/Materials | Destroyed 7 combat bots 422 | -10/Materials | Central database locked down 572 | -10/Materials | Discovered new exit (range 15) 611 | -10/Materials | Entered Mines 928 | -10/Mines | A weapon hastily lodged in a ceiling crevice suddenly fell to the ground 997 | -10/Mines | Discovered new exit (range 10) 1083 | -10/Mines | Discovered new exit (range 9) 1173 | -10/Mines | Learned Materials garrison access intel 1206 | -10/Mines | Received a Mining Laser from a helpful Derelict 1679 | -10/Mines | Assisted by bots powering up and referring to "LRC-V3" 2139 | -10/Mines | Identified exit to Materials 2189 | -10/Mines | Discovered new exit (range 2) 2191 | -10/Mines | Identified exit to Exiles 2285 | -10/Mines | Deemed a non-threat by the Exiles lab entrance 2300 | -10/Mines | Entered Exiles 2300 | -10/Exiles | Accompanied by 5 allies 2330 | -10/Exiles | Led the pair of lost Derelicts to a safe place 2490 | -10/Exiles | Met 8R-AWN 2522 | -10/Exiles | Met EX-HEX 2618 | -10/Exiles | Met EX-DEC 2717 | -10/Exiles | Learned location of Zion (-7) 2840 | -10/Exiles | Met EX-BIN 2937 | -10/Exiles | Aligned with FarCom system 2939 | -10/Exiles | Given EX-Vault access code 2980 | -10/Exiles | Opened EX-Vault 2995 | -10/Exiles | Found Longsword +1 3005 | -10/Exiles | Found Cloak of Protection 3040 | -10/Exiles | Warned to stay clear of 0b10 Research branches 3296 | -10/Exiles | Attacked by the Exiles 3445 | -10/Exiles | Found Prototype Ballistic Gun 3445 | -10/Exiles | Identified 8R-AWN's Boregun 3681 | -10/Exiles | Destroyed EX-BIN 3683 | -10/Exiles | Destroyed EX-DEC 3708 | -10/Exiles | Found Prototype Device 3708 | -10/Exiles | Identified System Purifier 3743 | -10/Exiles | Destroyed EX-HEX 3886 | -10/Exiles | Destroyed 8R-AWN 3914 | -10/Exiles | Found Prototype Processor 4186 | -10/Exiles | Build established: Scavenger-Mutant 4192 | -10/Exiles | Discovered new exit (range 14) 4208 | -10/Exiles | Entered Mines 4216 | -9/Mines | Discovered new exit (range 10) 4391 | -9/Mines | Entered Materials 4391 | -8/Materials | Evolved 4 slots: Utility x4 4392 | -8/Materials | Loaded intel: 1 garrison access location 4858 | -8/Materials | Discovered new exit (range 6) 5093 | -8/Materials | Build established: Hauler-Mutant 5792 | -8/Materials | Discovered new exit (range 16) 5798 | -8/Materials | Destroyed 7 combat bots 5851 | -8/Materials | Garrison activated, responded to threat 5897 | -8/Materials | Identified exit to Garrison 5897 | -8/Materials | Entered Garrison 6008 | -8/Garrison | Triggered checkpoint 6169 | -8/Garrison | Discovered new exit (range 15) 6207 | -8/Garrison | Core integrity fell below 50% 6399 | -8/Garrison | Attempted to access garrison exit controls, blocked by remote lockdown 6492 | -8/Garrison | Triggered checkpoint 6720 | -8/Garrison | Triggered checkpoint 6738 | -8/Garrison | Discovered new exit (range 12) 6759 | -8/Garrison | Attempted to access garrison exit controls, blocked by remote lockdown 6876 | -8/Garrison | Triggered checkpoint 6957 | -8/Garrison | Discovered new exit (range 15) 6988 | -8/Garrison | Entered Factory 6988 | -7/Factory | Evolved 2 slots: Utility x2 7600 | -7/Factory | Fabricated Imp. Heavy Treads? 7679 | -7/Factory | Identified exit to Storage 7679 | -7/Factory | Identified exit to Lower Caves 7753 | -7/Factory | Fabricated Imp. Heavy Treads (x2) 7809 | -7/Factory | Fabricated Hcp. Storage Unit (x1) 8045 | -7/Factory | Entered Lower Caves 8292 | -7/Lower Caves | A Derelict revealed a hidden shortcut to a safe place 8302 | -7/Lower Caves | Entered Zion 8436 | -7/Zion | Discovered new exit (range 14) 8740 | -7/Zion | Learned location of Recycling (-7) 8752 | -7/Zion | Gained Derelict followers 8817 | -7/Zion | Found Prototype Device 9050 | -7/Zion | Learned location of Extension (-6) 9062 | -7/Zion | Learned Factory emergency access door positions 9239 | -7/Zion | Learned Factory stockpile data 9494 | -7/Zion | Given the Hacking Drone Bay 9494 | -7/Zion | Identified Phasing AFG 9497 | -7/Zion | Found Prototype Device 9497 | -7/Zion | Identified Hacking Drone Bay 10353 | -7/Zion | Entered Proximity Caves 10353 | -6/Proximity Caves | Accompanied by 6 allies 11101 | -6/Proximity Caves | Found Prototype Launcher 11101 | -6/Proximity Caves | Identified Scatter Rocket Array 11104 | -6/Proximity Caves | Found Scatter Rocket Array 11231 | -6/Proximity Caves | Discovered new exit (range 16) 11552 | -6/Proximity Caves | Entered Factory 11552 | -6/Factory | Accompanied by 3 allies 11552 | -6/Factory | Evolved 2 slots: Utility x2 11847 | -6/Factory | Discovered new exit (range 13) 12136 | -6/Factory | Discovered new exit (range 15) 12288 | -6/Factory | Entered Extension 12558 | -6/Extension | Identified exit to Cetus 13038 | -6/Extension | Disrupted transfer network 13397 | -6/Extension | Spotted B-75 Beast 13412 | -6/Extension | Allies destroyed B-75 Beast 13434 | -6/Extension | Spotted B-75 Beast 13460 | -6/Extension | Destroyed B-75 Beast 13636 | -6/Extension | Rescued A7 13727 | -6/Extension | Rescued a captive Derelict 13728 | -6/Extension | Rescued a captive Derelict 14031 | -6/Extension | Discovered new exit (range 10) 14076 | -6/Extension | Entered Cetus 14076 | -6/Cetus | Accompanied by 1 ally (A7) 14081 | -6/Cetus | Acquired a Cetus Manufacturing Module code from A7 14102 | -6/Cetus | Spotted Cetus Guard 14102 | -6/Cetus | Spotted Cetus Guard 14104 | -6/Cetus | Spotted Cetus Guard 14111 | -6/Cetus | Allies destroyed Cetus Guard 14111 | -6/Cetus | Destroyed Cetus Guard 14111 | -6/Cetus | Spotted Cetus Guard 14116 | -6/Cetus | Destroyed Cetus Guard 14117 | -6/Cetus | Destroyed Cetus Guard 14221 | -6/Cetus | Started Cetus Manufacturing Module 14245 | -6/Cetus | Discovered new exit (range 16) 14246 | -6/Cetus | Manufactured an Enhanced Grunt 14271 | -6/Cetus | Manufactured an Enhanced Grunt 14289 | -6/Cetus | Spotted Cetus Guard 14289 | -6/Cetus | Spotted Cetus Guard 14292 | -6/Cetus | Spotted Cetus Guard 14296 | -6/Cetus | Manufactured an Enhanced Grunt 14298 | -6/Cetus | Allies destroyed Cetus Guard 14298 | -6/Cetus | Spotted Cetus Guard 14301 | -6/Cetus | Allies destroyed Cetus Guard 14303 | -6/Cetus | Destroyed Cetus Guard 14304 | -6/Cetus | Destroyed Cetus Guard 14321 | -6/Cetus | Manufactured an Enhanced Grunt 14323 | -6/Cetus | Discovered new exit (range 16) 14335 | -6/Cetus | Met Revision 17 14346 | -6/Cetus | Manufactured an Enhanced Grunt 14436 | -6/Cetus | Entered Archives 14436 | -6/Archives | Accompanied by 6 allies (A7) 14492 | -6/Archives | Discovered new exit (range 16) 14526 | -6/Archives | Entered Hub_04(d) 14526 | -6/Hub_04(d) | Accompanied by 5 allies 14536 | -6/Hub_04(d) | Discovered new exit (range 15) 14625 | -6/Hub_04(d) | Garrison activated, responded to threat 14744 | -6/Hub_04(d) | Garrison activated, responded to threat 14794 | -6/Hub_04(d) | Discovered new exit (range 14) 14929 | -6/Hub_04(d) | Network Hub disabled 14938 | -6/Hub_04(d) | Network Hub disabled 14955 | -6/Hub_04(d) | Spotted Lightning 14955 | -6/Hub_04(d) | Spotted Lightning 14955 | -6/Hub_04(d) | Spotted Lightning 14963 | -6/Hub_04(d) | Entered Factory 14963 | -5/Factory | Evolved 2 slots: Power x1, Utility x1 14967 | -5/Factory | Identified Exp. Targeting Computer 14989 | -5/Factory | Lost 3 parts (2u1w) 15263 | -5/Factory | First assault squad dispatched 15456 | -5/Factory | Fabricated Hcp. Storage Unit (x1) 15582 | -5/Factory | Discovered new exit (range 4) 15590 | -5/Factory | Entered Upper Caves 15592 | -5/Upper Caves | Attracted the attention of an 0b10 outpost 15651 | -5/Upper Caves | Crushed by falling debris 15744 | -5/Upper Caves | Attracted the attention of an 0b10 checkpoint 16408 | -5/Upper Caves | Attacked by a delusional Derelict stockpiling parts 16554 | -5/Upper Caves | Discovered new exit (range 5) 16566 | -5/Upper Caves | Entered another Upper Caves area 16631 | -5/Upper Caves | Discovered new exit (range 10) 16637 | -5/Upper Caves | Attracted the attention of an 0b10 checkpoint 16668 | -5/Upper Caves | Destroyed 9 combat bots 17150 | -5/Upper Caves | Learned Factory interactive machine intel 17210 | -5/Upper Caves | Discovered new exit (range 8) 17284 | -5/Upper Caves | Entered Zhirov 17284 | -5/Zhirov | Discovered new exit (range 3) 17320 | -5/Zhirov | Met Zhirov 17355 | -5/Zhirov | Build established: Scavenger-Mutant 17374 | -5/Zhirov | Learned location of Quarantine (-2) 17374 | -5/Zhirov | Learned location of Testing (-3) 17374 | -5/Zhirov | Learned location of Command (-1) 17394 | -5/Zhirov | Zhirov requested help retrieving the SGEMP Prototype 17427 | -5/Zhirov | Found Alien Artifact 17427 | -5/Zhirov | Identified Integrated Dissipator 17427 | -5/Zhirov | Installed Integrated Dissipator, increased core heat dissipation (+20) 17540 | -5/Zhirov | Found Alien Artifact 17619 | -5/Zhirov | Entered Proximity Caves 17677 | -4/Proximity Caves | Attracted the attention of an 0b10 checkpoint 17723 | -4/Proximity Caves | Identified exit to Factory 17968 | -4/Proximity Caves | Build established: Hauler-Mutant 18088 | -4/Proximity Caves | Spotted B-86 Titan 18157 | -4/Proximity Caves | Destroyed B-86 Titan 18172 | -4/Proximity Caves | Lost 5 parts (1n3u1w) 18458 | -4/Proximity Caves | Snuck into a huge 0b10 base via the rear entrance 18542 | -4/Proximity Caves | Derelicts attacked a huge 0b10 base 19239 | -4/Proximity Caves | Spotted B-86 Titan 19241 | -4/Proximity Caves | Core integrity fell below 50% 19250 | -4/Proximity Caves | P-70 Sage assimilated allied Disruptor 7b 19320 | -4/Proximity Caves | Core integrity fell below 20% 19330 | -4/Proximity Caves | Destroyed B-86 Titan 19356 | -4/Proximity Caves | Lost 11 parts (2n4u5w) 19522 | -4/Proximity Caves | Entered Factory 19522 | -4/Factory | Accompanied by 3 allies 19522 | -4/Factory | Evolved 2 slots: Utility x2 19523 | -4/Factory | Loaded intel: 46 interactive machine locations 19558 | -4/Factory | Identified exit to Upper Caves 19648 | -4/Factory | Build established: Scavenger-Mutant 19675 | -4/Factory | Entered Upper Caves 19690 | -4/Upper Caves | Learned Research terminal intel 20056 | -4/Upper Caves | Attracted the attention of an 0b10 checkpoint 20230 | -4/Upper Caves | Encountered a Warlord checkpoint 20371 | -4/Upper Caves | Learned Research stockpile data 20464 | -4/Upper Caves | Discovered new exit (range 13) 20564 | -4/Upper Caves | Entered another Upper Caves area 20642 | -4/Upper Caves | Discovered new exit (range 7) 20793 | -4/Upper Caves | Build established: Hauler-Mutant 21180 | -4/Upper Caves | Acquired the password to a Derelict Tinkerer's latest research 21204 | -4/Upper Caves | Found Prototype Special Weapon 21315 | -4/Upper Caves | Caught by Unaware searching for contraband prototypes 21476 | -4/Upper Caves | Caught by Unaware searching for contraband prototypes 21941 | -4/Upper Caves | Discovered new exit (range 6) 21951 | -4/Upper Caves | Entered Warlord 22357 | -4/Warlord | Received a Watcher feed algorithm from an ecstatic Tinkerer 22874 | -4/Warlord | Met Warlord 22891 | -4/Warlord | Identified Molecular Deconstructor 22899 | -4/Warlord | Warlord's base attacked by MAIN.C 22955 | -4/Warlord | Found Prototype Reactor 22964 | -4/Warlord | Found Prototype Processor 22964 | -4/Warlord | Identified Spectral Analyzer 22974 | -4/Warlord | Found Prototype Device 22974 | -4/Warlord | Identified Exp. Cloaking Device 23232 | -4/Warlord | Identified Vortex Chain Reactor 23233 | -4/Warlord | Found Prototype Ballistic Cannon 23241 | -4/Warlord | Spotted Striker 23241 | -4/Warlord | Spotted B-90 Cyclops 23249 | -4/Warlord | Warlord forces counterattacked 23256 | -4/Warlord | Destroyed Striker 23331 | -4/Warlord | Found Prototype Ballistic Cannon 23352 | -4/Warlord | Spotted Striker 23360 | -4/Warlord | Destroyed Striker 23362 | -4/Warlord | Spotted Executioner 23364 | -4/Warlord | Spotted Striker 23371 | -4/Warlord | Destroyed Executioner 23394 | -4/Warlord | Discovered new exit (range 15) 23399 | -4/Warlord | Spotted Striker 23401 | -4/Warlord | Spotted Striker 23407 | -4/Warlord | Destroyed Striker 23418 | -4/Warlord | Destroyed Striker 23499 | -4/Warlord | Spotted Striker 23499 | -4/Warlord | Entered Proximity Caves 24104 | -3/Proximity Caves | Discovered new exit (range 10) 24126 | -3/Proximity Caves | Entered Research 24126 | -3/Research | Evolved 2 slots: Power x1, Utility x1 24128 | -3/Research | Loaded intel: 18 terminal locations 24191 | -3/Research | Identified exit to Armory 24191 | -3/Research | Identified exit to Testing 24318 | -3/Research | Entered Testing 24429 | -3/Testing | Spotted PD-WW8TV0T0NY 24575 | -3/Testing | Found Prototype Energy Gun 24864 | -3/Testing | Found Prototype Energy Cannon 24991 | -3/Testing | Identified Transdimensional Reconstructor 24991 | -3/Testing | Identified Hpw. Disruptor Cannon 24991 | -3/Testing | Identified Hvy. Autocannon (x2) 24991 | -3/Testing | Identified Warp Gun 25087 | -3/Testing | Garrison activated, responded to threat 25430 | -3/Testing | Found Prototype Energy Cannon 25714 | -3/Testing | Scanned by Researcher 25756 | -3/Testing | Found Prototype Protection 25756 | -3/Testing | Identified SHELL Armor 25760 | -3/Testing | Found Prototype Protection 25766 | -3/Testing | Found Prototype Protection 25769 | -3/Testing | Found Prototype Protection 25869 | -3/Testing | Identified Hvy. Regenerative Plating 25935 | -3/Testing | Discovered new exit (range 5) 25974 | -3/Testing | Found Prototype Ballistic Gun 25974 | -3/Testing | Identified Hyp. Multirail 26507 | -3/Testing | Found Prototype Energy Gun 26749 | -3/Testing | Fabricated Hcp. Storage Unit (x1) 27022 | -3/Testing | Found Quantum Capacitor 27068 | -3/Testing | First assault squad dispatched 27233 | -3/Testing | Identified Hyp. EM Gauss Rifle 27351 | -3/Testing | Found Prototype Protection 27351 | -3/Testing | Identified Centrium Heavy Armor Plating 27396 | -3/Testing | Identified Lgt. Regenerative Plating (x2) 27475 | -3/Testing | Spotted Striker 27534 | -3/Testing | Spotted Striker 27566 | -3/Testing | Spotted Alpha 7 27579 | -3/Testing | Destroyed Striker 27591 | -3/Testing | Destroyed Striker 27650 | -3/Testing | Lost 4 parts (3p1u) 27663 | -3/Testing | Destroyed Alpha 7 27681 | -3/Testing | Found Prototype Processor 27682 | -3/Testing | Identified Exp. Target Analyzer 27686 | -3/Testing | Found Prototype Device 27687 | -3/Testing | Identified Exp. ECM Suite 27740 | -3/Testing | Stole the SGEMP Prototype 27980 | -3/Testing | Entered Research 27980 | -2/Research | Warlord forces began assault on 0b10 27980 | -2/Research | Evolved 2 slots: Utility x2 28090 | -2/Research | Research machine network offline 28282 | -2/Research | Spotted Striker 28307 | -2/Research | Destroyed Striker 28322 | -2/Research | Borebot progress halted 28329 | -2/Research | Met up with Warlord 28355 | -2/Research | Found Prototype Processor 28355 | -2/Research | Identified Exp. Melee Analysis Suite 28419 | -2/Research | Spotted Executioner 28425 | -2/Research | Spotted Executioner 28473 | -2/Research | Found Exp. Targeting Computer 28488 | -2/Research | Borebot progress halted 28595 | -2/Research | Build established: Scavenger-Mutant 28604 | -2/Research | Identified Imp. Potential Cannon 28646 | -2/Research | Spotted B-90 Cyclops 28672 | -2/Research | Destroyed B-90 Cyclops 28724 | -2/Research | Found Quantum Capacitor 28832 | -2/Research | Spotted B-90 Cyclops 28960 | -2/Research | Discovered new exit (range 23) 28974 | -2/Research | Destroyed B-90 Cyclops 29040 | -2/Research | Entered Quarantine 29099 | -2/Quarantine | Garrison activated, responded to threat 29156 | -2/Quarantine | Destroyed 13 combat bots 29421 | -2/Quarantine | Found Alien Artifact 29453 | -2/Quarantine | Found Alien Artifact 29540 | -2/Quarantine | First assault squad dispatched 29704 | -2/Quarantine | Identified Subatomic Replicator 29769 | -2/Quarantine | Found Alien Impact Weapon 29850 | -2/Quarantine | Discovered new exit (range 15) 29912 | -2/Quarantine | Entered Access 29912 | -1/Access | Evolved 2 slots: Utility x2 29913 | -1/Access | Loaded intel: 105 machine locations 29913 | -1/Access | Loaded intel: 111 trap records 29913 | -1/Access | Identified exit to Surface 29913 | -1/Access | Discovered exit to Surface (range 126) 29913 | -1/Access | Identified exit to Command 29913 | -1/Access | Discovered exit to Command (range 119) 29913 | -1/Access | Delivered the SGEMP Prototype to Zhirov 29913 | -1/Access | Zhirov transferred Access data 30168 | -1/Access | Zhirov warped through subspace 30181 | -1/Access | Used Subatomic Replicator to replicate SHELL Armor 30334 | -1/Access | Identified Core Reset Matrix 30334 | -1/Access | Identified Core Stripper 30455 | -1/Access | First assault squad dispatched 30586 | -1/Access | Entered Command 30847 | -1/Command | Found Antimissile System 30875 | -1/Command | First assault squad dispatched 30993 | -1/Command | Destroyed 15 combat bots 31187 | -1/Command | Destroyed 9 combat bots 31230 | -1/Command | Spotted B-99 Colossus 31262 | -1/Command | Destroyed B-99 Colossus 31396 | -1/Command | Destroyed 7 combat bots 31485 | -1/Command | Destroyed 7 combat bots 31691 | -1/Command | High security lockdown imminent 31716 | -1/Command | Destroyed 7 combat bots 31723 | -1/Command | Spotted M Guard 31725 | -1/Command | Spotted M Guard 31730 | -1/Command | Spotted Combat Programmer 31730 | -1/Command | Spotted Combat Programmer 31754 | -1/Command | Destroyed M Guard 31762 | -1/Command | Destroyed M Guard 31767 | -1/Command | System corruption reached 10% 31771 | -1/Command | High security lockdown engaged 31771 | -1/Command | Destroyed Combat Programmer 31789 | -1/Command | Destroyed Combat Programmer 31789 | -1/Command | All MAIN.C guards destroyed 31832 | -1/Command | Found Prototype Reactor 31832 | -1/Command | Identified Zero-point Reactor 31835 | -1/Command | Found Zero-point Reactor 31839 | -1/Command | Found Prototype Device 31839 | -1/Command | Identified AEGIS Remote Shield 31847 | -1/Command | Found Prototype Launcher 31852 | -1/Command | Found Prototype Device 31882 | -1/Command | Found Zero-point Reactor 31937 | -1/Command | Destroyed 12 combat bots 31943 | -1/Command | Found Prototype Launcher 31943 | -1/Command | Identified Hellfire Missile Launcher 31967 | -1/Command | Spotted Executioner 31968 | -1/Command | Spotted Investigator 31973 | -1/Command | Destroyed Investigator 31980 | -1/Command | Destroyed Executioner 31982 | -1/Command | Identified Ragnarok Missile Launcher 32006 | -1/Command | Destroyed 15 combat bots 32038 | -1/Command | Lost 3 parts (3u) 32104 | -1/Command | Met MAIN.C 32108 | -1/Command | 0b10 Conduit disabled 32148 | -1/Command | Identified Thermal Barrier 32175 | -1/Command | Spotted Striker 32175 | -1/Command | Spotted Executioner 32178 | -1/Command | Spotted Executioner 32179 | -1/Command | System corruption reached 30% 32183 | -1/Command | Destroyed Executioner 32185 | -1/Command | Destroyed Striker 32206 | -1/Command | Destroyed 18 combat bots 32220 | -1/Command | Core integrity fell below 50% 32228 | -1/Command | Core integrity fell below 20% 32232 | -1/Command | Destroyed by Executioner with Helical Railgun Last Messages --------------- 32216_ MAIN.C core entropy levels peaking. 32216_ Slammed into G-73 Enforcer. 32216_ Zero-point Reactor destroyed. 32217_ Exp. Biometal Heavy Treads destroyed. 32218_ Acquired Antimatter Reactor. 32219_ MAIN.C core entropy levels peaking. 32220_ Penetrated by Slug. 32220_ Slug penetrates G-73 Enforcer. 32220_ Penetrated by Slug. 32220_ G-73 Enforcer destroyed. 32221_ System corrupted: Substantial component data lost. 32221_ Acquired 61 matter. 32223_ Penetrated by Slug. 32223_ Slug penetrates 0b10 Conduit. 32223_ Penetrated by Slug. 32224_ Ragnarok Missile Launcher destroyed. 32226_ Penetrated by Slug. 32226_ Slug penetrates 0b10 Conduit. 32229_ Antimatter Reactor destroyed. 32229_ Penetrated by Slug. Map ----- +----------------------------------------------------+ | ?????????????????????????????????????????????????? | | ?????????????????????????????????????????????????? | | ?????????????????????????????????????????????????? | | ?????????????????????????????????????????????????? | | ?????????????????????????????????????????????????? | | ?????????????????????????????????????????????????? | | ?????????????????????????????????????????????????? | | ?????????????????????????????????????????????????? | | ?????????????????????????????????????????????????? | | ?????????????????????????????????????????????????? | | ?????????????????????????????????????????????????? | | ?????????????????????????????????????????????????? | | ?????????????????????????????????????????????????? | | ?????????????????????????????????????????????????? | | ?????????????????????????????????????????????????? | | ?????????????????????????????????????????????????? | | ???????????####################??????????????????? | | ????????????"""" """" #??????????????????? | | ???????????? "" #??????????????????? | | ????????????"" "" #################### | | ???????????""""""""" [%%%==% | | ???????????? " "" =%[%%%% | | ?????????????"""""" MMM*%*|% | | ???????????? """""" EMMM ################### | | ????????# " """"" !MMM #?????????????????# | | ????????# " *@g #?????????????????# | | ????????# " =[pbg #?????????????????# | | ????????#"""""""" """"#?????????????????# | | ??????????" """"#?????????????????# | | ????????# """"#?????????????????# | | ????????# m " " #?????????????????# | | ????????# " " " #?????????????????# | | ????????" g " " " "" " " #?????????????????# | | ????????" """ " " """ #?????????????????# | | ????????" " " " " #?????????????????## | | ????????# """""""""" " #??????????????????? | | ????????# " """ " """ """"#??????????????????? | | ????????# ?? """ " " " #??????????????????? | | ????????#??????################??????????????????? | | ?????????????????????????????????????????????????? | | ?????????????????????????????????????????????????? | | ?????????????????????????????????????????????????? | | ?????????????????????????????????????????????????? | | ?????????????????????????????????????????????????? | | ?????????????????????????????????????????????????? | | ?????????????????????????????????????????????????? | | ?????????????????????????????????????????????????? | | ?????????????????????????????????????????????????? | | ?????????????????????????????????????????????????? | | ?????????????????????????????????????????????????? | +----------------------------------------------------+ Best States ------------- Heat Dissipation 194 Coolant Potential 120 Energy Generation 89 Energy Capacity 925 Matter Stores 300 Matter Capacity 300 Sight Range 24 Terrain Scan Range 20 Terrain Scan Density 110 Power Amplification 30 EM Shielding 4 Armor Coverage 4800 Resistance: TH 50 Resistance: EM 20 Core Shielding 20 Weapon Shielding 66 Point Defense Rating 240 Weapon Cycling 25 Evasion (%) 49 Targeting Accuracy 12 Melee Accuracy 12 Target Analysis 12 Core Analysis 6 Armor Integrity Analysis 50 Recoil Reduction 4 Matter Filtering 50 Salvage Targeting 3 Offensive Hacking 14 Defensive Hacking 14 Item Schematics ----------------- Hcp. Storage Unit | -7/Factory | Scanalyzed Flak Gun | -7/Factory | Scanalyzed Hrd. Heavy Armor Plating | -7/Factory | Scanalyzed Riot Gun | -7/Zion | Free Hvy. Riot Gun | -7/Zion | Free Battle Cannon | -7/Zion | Free Slug Cannon | -7/Zion | Free Enh. Flamer | -7/Zion | Free Ripper | -7/Zion | Free Assault Drone Bay | -5/Zhirov | Free Exp. Heat Sink | -5/Zhirov | Free Exp. Optical Array | -5/Zhirov | Free Imp. Arc Thrower | -5/Zhirov | Free Robot Schematics ------------------ None Fabricated ------------ Imp. Heavy Treads | x2 | -7/Factory | Preloaded Imp. Heavy Treads | x2 | -7/Factory | Preloaded Hcp. Storage Unit | x1 | -7/Factory Hcp. Storage Unit | x1 | -5/Factory Hcp. Storage Unit | x1 | -3/Testing Alien Tech Used ----------------- Integrated Dissipator Subatomic Replicator Core Stripper Achievements -------------- None Challenges ------------ None Game ------ Seed DerelictCouplerMace Manual? 0 Play Time 04:07:21 Cumulative 231.6 hours Start 2021.01.06 @ 15:31:16 End 2021.01.06 @ 20:07:22 Sessions 1 Manual Loads 0 Difficulty Rogue Special Mode None Game No. 207 Rogue 200 Adventurer 0 Explorer 7 Win Type - Total 5 Types 1/0/4/0/0/0/0/0/0 Lore% 70 Gallery% 90 Achievement% 69 Wizard Run 0 Options --------- ASCII 0 Keyboard 0 Movement Numpad Keybinds 0 Fullscreen 1 Font 18/X11 Map View 76x50 Tactical HUD 1 Map Filters NONE Filters NONE Steam 1 RUN: ee7e7984-a4aa-4018-9ca9-42490905aca6